[Event "European Online Club-ch-C 2021"]
[Site "Online"]
[Date "2021.03.27"]
[Round "6.19"]
[White "Plat, Vojtech"]
[Black "Gukesh D"]
[Result "1-0"]
[ECO "D30"]
[WhiteElo "2552"]
[BlackElo "2563"]
[Annotator "ChessBase"]
[PlyCount "165"]
[EventDate "2021.03.27"]
[EventType "team-tourn"]
[EventCountry "NET"]
[SourceTitle "playchess.com"]
[Source "ChessBase"]
[SourceQuality "1"]
[TimeControl "900+5"]

1. d4 {[%emt 0:00:00]} d5 {[%emt 0:00:03]} 2. Nf3 {[%emt 0:00:03]} Nf6 {[%emt 0:00:02]} 3. e3 {[%emt 0:00:02]} e6 {[%emt 0:00:19]} 4. c4 {[%emt 0:00:02]} Bb4+ {[%emt 0:00:17]} 5. Nbd2 {[%emt 0:00:04]} c5 {[%emt 0:00:31]} 6. a3 {[%emt 0:00:02]} Bxd2+ {[%emt 0:00:02]} 7. Bxd2 {[%emt 0:00:02]} cxd4 {[%emt 0:00:01]} 8. exd4 {[%emt 0:00:02]} dxc4 {[%emt 0:00:32]} 9. Bxc4 {[%emt 0:00:04]} O-O {[%emt 0:00:02]} 10. O-O {[%emt 0:00:03]} b6 {[%emt 0:00:13]} 11. Bg5 {[%emt 0:00:19]} Ba6 {[%emt 0:01:31]} 12. Bxa6 {[%emt 0:00:11]} Nxa6 {[%emt 0:00:01]} 13. Ne5 {[%emt 0:00:02]} Nc7 {[%emt 0:00:10]} 14. Nc6 {[%emt 0:01:38]} Qd6 {[%emt 0:00:40]} 15. Bxf6 {[%emt 0:00:02]} gxf6 {[%emt 0:00:09]} 16. Qg4+ {[%emt 0:00:03]} Kh8 {[%emt 0:00:02]} 17. Qf3 {[%emt 0:00:02]} f5 {[%emt 0:02:31]} 18. Rac1 {[%emt 0:00:07]} Nd5 {[%emt 0:00:20]} 19. Ne5 {[%emt 0:00:11]} f6 {[%emt 0:00:08]} 20. Nc4 {[%emt 0:00:35]} Qf4 {[%emt 0:00:03]} 21. Qxf4 {[%emt 0:01:07]} Nxf4 {[%emt 0:00:01]} 22. Rc2 {[%emt 0:00:05]} Rac8 {[%emt 0:00:31]} 23. Rd1 {[%emt 0:01:57]} Rfd8 {[%emt 0:02:44]} 24. g3 {[%emt 0:00:26]} Ng6 {[%emt 0:00:36]} 25. Kf1 {[%emt 0:00:30]} f4 {[%emt 0:00:30]} 26. a4 {[%emt 0:00:13]} Kg7 {[%emt 0:00:30]} 27. b3 {[%emt 0:00:20]} Rd5 {[%emt 0:00:07]} 28. Re1 {[%emt 0:00:17]} Rc6 {[%emt 0:00:36]} 29. Na3 {[%emt 0:01:23]} Rxc2 {[%emt 0:00:16]} 30. Nxc2 {[%emt 0:00:03]} Kf7 {[%emt 0:00:11]} 31. Ke2 {[%emt 0:00:06]} Rh5 {[%emt 0:00:10]} 32. h4 {[%emt 0:00:03]} fxg3 {[%emt 0:00:16]} 33. fxg3 {[%emt 0:00:02]} Ne7 {[%emt 0:00:02]} 34. Ne3 {[%emt 0:00:13]} b5 {[%emt 0:00:22]} 35. Ra1 {[%emt 0:00:17]} Nc6 {[%emt 0:00:35]} 36. Kd3 {[%emt 0:00:14]} bxa4 {[%emt 0:01:04]} 37. Rxa4 {[%emt 0:00:14]} Rb5 {[%emt 0:00:02]} 38. Kc3 {[%emt 0:00:13]} Ke7 {[%emt 0:00:04]} 39. Ra1 {[%emt 0:00:30]} f5 {[%emt 0:00:25]} 40. Kc4 {[%emt 0:01:50]} Rb7 {[%emt 0:00:58]} 41. d5 {[%emt 0:00:11]} Ne5+ {[%emt 0:00:13]} 42. Kc3 {[%emt 0:00:05]} Rc7+ {[%emt 0:00:05]} 43. Kd4 {[%emt 0:00:20]} Nf3+ {[%emt 0:00:10]} 44. Kd3 {[%emt 0:00:02]} Ne5+ {[%emt 0:00:09]} 45. Kd2 {[%emt 0:00:33]} Nf3+ {[%emt 0:00:04]} 46. Kd3 {[%emt 0:00:09]} Ne5+ {[%emt 0:00:01]} 47. Ke2 {[%emt 0:00:02]} Rb7 {[%emt 0:00:16]} 48. dxe6 {[%emt 0:00:14]} Kxe6 {[%emt 0:00:01]} 49. Ra6+ {[%emt 0:00:05]} Rb6 {[%emt 0:00:11]} 50. Rxa7 {[%emt 0:00:03]} Rxb3 {[%emt 0:00:02]} 51. Ra6+ {[%emt 0:00:02]} Kf7 {[%emt 0:00:03]} 52. Nxf5 {[%emt 0:00:03]} Ng4 {[%emt 0:00:10]} 53. Ra4 {[%emt 0:00:34]} h5 {[%emt 0:00:05]} 54. Ra6 {[%emt 0:00:13]} Rc3 {[%emt 0:00:12]} 55. Kd2 {[%emt 0:00:22]} Rf3 {[%emt 0:00:03]} 56. Nd6+ {[%emt 0:00:02]} Kg7 {[%emt 0:00:05]} 57. Ne4 {[%emt 0:00:05]} Rb3 {[%emt 0:00:07]} 58. Ra5 {[%emt 0:00:11]} Kh6 {[%emt 0:00:07]} 59. Nd6 {[%emt 0:00:08]} Rb6 {[%emt 0:00:03]} 60. Nf5+ {[%emt 0:00:14]} Kg6 {[%emt 0:00:03]} 61. Nd4 {[%emt 0:00:03]} Rd6 {[%emt 0:00:04]} 62. Rg5+ {[%emt 0:00:18]} Kf6 {[%emt 0:00:03]} 63. Kc3 {[%emt 0:00:18]} Ra6 {[%emt 0:00:03]} 64. Rxh5 {[%emt 0:00:11]} Ra3+ {[%emt 0:00:04]} 65. Nb3 {[%emt 0:00:02]} Ne3 {[%emt 0:00:04]} 66. Rg5 {[%emt 0:00:25]} Nf5 {[%emt 0:00:03]} 67. Kb4 {[%emt 0:00:35]} Ra2 {[%emt 0:00:07]} 68. Nc5 {[%emt 0:00:03]} Re2 {[%emt 0:00:09]} 69. Nd7+ {[%emt 0:00:17]} Ke6 {[%emt 0:00:03]} 70. Nf8+ {[%emt 0:00:02]} Kf6 {[%emt 0:00:02]} 71. Nh7+ {[%emt 0:00:18]} Ke6 {[%emt 0:00:01]} 72. Rg6+ {[%emt 0:00:15]} Ke5 {[%emt 0:00:02]} 73. h5 {[%emt 0:00:10]} Rg2 {[%emt 0:00:13]} 74. g4 {[%emt 0:00:04]} Ne3 {[%emt 0:00:03]} 75. Nf6 {[%emt 0:00:09]} Rf2 {[%emt 0:00:12]} 76. g5 {[%emt 0:00:15]} Kf5 {[%emt 0:00:02]} 77. Rg8 {[%emt 0:00:12]} Rf4+ {[%emt 0:00:07]} 78. Kc5 {[%emt 0:00:04]} Rc4+ {[%emt 0:00:01]} 79. Kb5 {[%emt 0:00:02]} Rh4 {[%emt 0:00:10]} 80. h6 {[%emt 0:00:02]} Nc2 {[%emt 0:00:06]} 81. h7 {[%emt 0:00:24]} Nd4+ {[%emt 0:00:02]} 82. Kb6 {[%emt 0:00:02]} Ne6 {[%emt 0:00:04]} 83. h8=Q {[%emt 0:00:07]} 1-0

[Event "European Online Club-ch-C 2021"]
[Site "Online"]
[Date "2021.03.27"]
[Round "6.20"]
[White "Alvarez Fernandez, Enrique"]
[Black "Stocek, Jiri"]
[Result "0-1"]
[ECO "D02"]
[WhiteElo "2349"]
[BlackElo "2604"]
[Annotator "ChessBase"]
[PlyCount "74"]
[EventDate "2021.03.27"]
[EventType "team-tourn"]
[EventCountry "NET"]
[SourceTitle "playchess.com"]
[Source "ChessBase"]
[SourceQuality "1"]
[TimeControl "900+5"]

1. d4 {[%emt 0:00:00]} Nf6 {[%emt 0:00:03]} 2. Nf3 {[%emt 0:00:08]} d5 {[%emt 0:00:07]} 3. Bf4 {[%emt 0:00:03]} Bg4 {[%emt 0:00:09]} 4. Ne5 {[%emt 0:00:28]} Bh5 {[%emt 0:00:10]} 5. Qd3 {[%emt 0:01:42]} Nbd7 {[%emt 0:01:31]} 6. Qh3 {[%emt 0:01:31]} Qc8 {[%emt 0:00:26]} 7. Nd2 {[%emt 0:01:44]} Nxe5 {[%emt 0:00:21]} 8. Qxc8+ {[%emt 0:00:18]} Rxc8 {[%emt 0:00:03]} 9. Bxe5 {[%emt 0:00:12]} Nd7 {[%emt 0:00:12]} 10. Bg3 {[%emt 0:00:15]} c5 {[%emt 0:00:10]} 11. dxc5 {[%emt 0:00:26]} Nxc5 {[%emt 0:00:15]} 12. e3 {[%emt 0:02:52]} e6 {[%emt 0:00:21]} 13. Bb5+ {[%emt 0:00:18]} Kd8 {[%emt 0:00:04]} 14. a4 {[%emt 0:01:52]} Bg6 {[%emt 0:00:46]} 15. c3 {[%emt 0:00:59]} Nd3+ {[%emt 0:01:11]} 16. Bxd3 {[%emt 0:00:18]} Bxd3 {[%emt 0:00:03]} 17. f3 {[%emt 0:00:47]} f6 {[%emt 0:00:30]} 18. e4 {[%emt 0:00:36]} d4 {[%emt 0:01:03]} 19. Nb3 {[%emt 0:01:27]} e5 {[%emt 0:00:47]} 20. Kd2 {[%emt 0:00:28]} Bc4 {[%emt 0:00:35]} 21. Na5 {[%emt 0:00:10]} Ba6 {[%emt 0:00:27]} 22. Rhc1 {[%emt 0:00:04]} b6 {[%emt 0:01:02]} 23. Nb3 {[%emt 0:00:03]} Bc4 {[%emt 0:00:07]} 24. cxd4 {[%emt 0:00:06]} Bb4+ {[%emt 0:01:36]} 25. Ke3 {[%emt 0:00:09]} Bxb3 {[%emt 0:00:04]} 26. Rxc8+ {[%emt 0:00:03]} Kxc8 {[%emt 0:00:02]} 27. dxe5 {[%emt 0:00:03]} Rd8 {[%emt 0:00:17]} 28. exf6 {[%emt 0:00:07]} Bd2+ {[%emt 0:01:22]} 29. Kf2 {[%emt 0:00:09]} gxf6 {[%emt 0:00:05]} 30. Bh4 {[%emt 0:00:05]} Rd6 {[%emt 0:00:15]} 31. Kg3 {[%emt 0:00:06]} Kd7 {[%emt 0:00:16]} 32. Kh3 {[%emt 0:00:03]} Ke6 {[%emt 0:00:14]} 33. Bg3 {[%emt 0:00:03]} Rd3 {[%emt 0:00:06]} 34. Kg4 {[%emt 0:00:04]} Kf7 {[%emt 0:00:06]} 35. Bf4 {[%emt 0:00:06]} h5+ {[%emt 0:00:10]} 36. Kg3 {[%emt 0:00:03]} h4+ {[%emt 0:00:02]} 37. Kg4 {[%emt 0:00:02]} Be6+ {[%emt 0:00:02]} 0-1

[Event "European Online Club-ch-C 2021"]
[Site "Online"]
[Date "2021.03.27"]
[Round "7.1"]
[White "Delgado Ramirez, Neuris"]
[Black "Okuyaz, Duru"]
[Result "1-0"]
[ECO "C10"]
[WhiteElo "2615"]
[BlackElo "2076"]
[Annotator "ChessBase"]
[PlyCount "51"]
[EventDate "2021.03.27"]
[EventType "team-tourn"]
[EventCountry "NET"]
[SourceTitle "playchess.com"]
[Source "ChessBase"]
[SourceQuality "1"]
[TimeControl "900+5"]

1. e4 {[%emt 0:00:00]} e6 {[%emt 0:00:03]} 2. d4 {[%emt 0:00:05]} d5 {[%emt 0:00:01]} 3. Nc3 {[%emt 0:00:03]} dxe4 {[%emt 0:00:05]} 4. Nxe4 {[%emt 0:00:02]} Nd7 {[%emt 0:00:02]} 5. Nf3 {[%emt 0:00:04]} Ngf6 {[%emt 0:00:02]} 6. Nxf6+ {[%emt 0:00:03]} Nxf6 {[%emt 0:00:01]} 7. c3 {[%emt 0:00:04]} c5 {[%emt 0:00:22]} 8. Be3 {[%emt 0:00:08]} Qb6 {[%emt 0:01:24]} 9. Qb3 {[%emt 0:02:24]} Bd7 {[%emt 0:04:37]} 10. Be2 {[%emt 0:01:25]} Nd5 {[%emt 0:01:11]} 11. O-O {[%emt 0:00:51]} Nxe3 {[%emt 0:00:38]} 12. fxe3 {[%emt 0:00:04]} Bd6 {[%emt 0:01:00]} 13. Qc2 {[%emt 0:00:29]} O-O {[%emt 0:00:19]} 14. Ng5 {[%emt 0:00:09]} f5 {[%emt 0:00:13]} 15. Bc4 {[%emt 0:00:06]} Kh8 {[%emt 0:01:00]} 16. Kh1 {[%emt 0:00:50]} cxd4 {[%emt 0:00:27]} 17. exd4 {[%emt 0:00:03]} Bxh2 {[%emt 0:01:25]} 18. Qe2 {[%emt 0:00:26]} Bb8 {[%emt 0:00:28]} 19. Qh5 {[%emt 0:00:17]} h6 {[%emt 0:00:08]} 20. Rae1 {[%emt 0:01:16]} Qc7 {[%emt 0:00:57]} 21. Bxe6 {[%emt 0:00:18]} Be8 {[%emt 0:00:50]} 22. Qh3 {[%emt 0:00:46]} Qg3 {[%emt 0:00:17]} 23. Qxg3 {[%emt 0:00:04]} Bxg3 {[%emt 0:00:03]} 24. Re3 {[%emt 0:00:02]} f4 {[%emt 0:00:14]} 25. Rxg3 {[%emt 0:00:06]} hxg5 {[%emt 0:00:05]} 26. Rh3+ {[%emt 0:00:02]} 1-0

[Event "European Online Club-ch-C 2021"]
[Site "Online"]
[Date "2021.03.27"]
[Round "7.2"]
[White "Gallevci, Yagiz"]
[Black "Martinez Alcantara, Jose Eduardo"]
[Result "0-1"]
[ECO "C68"]
[WhiteElo "2069"]
[BlackElo "2620"]
[Annotator "ChessBase"]
[PlyCount "100"]
[EventDate "2021.03.27"]
[EventType "team-tourn"]
[EventCountry "NET"]
[SourceTitle "playchess.com"]
[Source "ChessBase"]
[SourceQuality "1"]
[TimeControl "900+5"]

1. e4 {[%emt 0:00:00]} e5 {[%emt 0:00:04]} 2. Nf3 {[%emt 0:00:03]} Nc6 {[%emt 0:00:01]} 3. Bb5 {[%emt 0:00:23]} a6 {[%emt 0:00:02]} 4. Bxc6 {[%emt 0:00:02]} dxc6 {[%emt 0:00:02]} 5. Nc3 {[%emt 0:00:00]} f6 {[%emt 0:01:19]} 6. d4 {[%emt 0:00:04]} exd4 {[%emt 0:00:02]} 7. Qxd4 {[%emt 0:00:01]} Qxd4 {[%emt 0:00:25]} 8. Nxd4 {[%emt 0:00:02]} Bd7 {[%emt 0:00:01]} 9. Be3 {[%emt 0:00:15]} Bb4 {[%emt 0:00:50]} 10. Nde2 {[%emt 0:00:10]} Ne7 {[%emt 0:00:03]} 11. O-O-O {[%emt 0:00:08]} O-O-O {[%emt 0:00:20]} 12. Na4 {[%emt 0:01:30]} Ng6 {[%emt 0:01:22]} 13. Bc5 {[%emt 0:00:25]} a5 {[%emt 0:01:46]} 14. c3 {[%emt 0:00:53]} Bxc5 {[%emt 0:00:04]} 15. Nxc5 {[%emt 0:00:00]} Ne5 {[%emt 0:00:01]} 16. h3 {[%emt 0:01:54]} Rhe8 {[%emt 0:00:04]} 17. Ng3 {[%emt 0:00:34]} b6 {[%emt 0:00:24]} 18. Nxd7 {[%emt 0:00:07]} Nxd7 {[%emt 0:00:01]} 19. Kc2 {[%emt 0:00:11]} g6 {[%emt 0:00:19]} 20. Rhe1 {[%emt 0:00:47]} Re7 {[%emt 0:00:02]} 21. Re2 {[%emt 0:00:30]} Rde8 {[%emt 0:00:20]} 22. Rde1 {[%emt 0:01:03]} c5 {[%emt 0:00:20]} 23. Nf1 {[%emt 0:01:24]} c4 {[%emt 0:01:07]} 24. Nd2 {[%emt 0:01:06]} Ne5 {[%emt 0:00:15]} 25. Rf1 {[%emt 0:01:32]} b5 {[%emt 0:00:25]} 26. f4 {[%emt 0:00:37]} Nd7 {[%emt 0:00:35]} 27. a4 {[%emt 0:00:05]} c6 {[%emt 0:00:08]} 28. Ra1 {[%emt 0:00:10]} Kb7 {[%emt 0:00:36]} 29. axb5 {[%emt 0:00:19]} cxb5 {[%emt 0:00:01]} 30. Rxa5 {[%emt 0:00:01]} Kb6 {[%emt 0:00:02]} 31. Ra1 {[%emt 0:00:01]} Nc5 {[%emt 0:00:01]} 32. b3 {[%emt 0:01:44]} cxb3+ {[%emt 0:00:34]} 33. Nxb3 {[%emt 0:00:00]} Rxe4 {[%emt 0:00:01]} 34. Rxe4 {[%emt 0:00:36]} Rxe4 {[%emt 0:00:04]} 35. Nd4 {[%emt 0:00:18]} Rxf4 {[%emt 0:00:03]} 36. Ra8 {[%emt 0:00:38]} Rf2+ {[%emt 0:00:03]} 37. Kd1 {[%emt 0:00:01]} Ne4 {[%emt 0:00:08]} 38. Ke1 {[%emt 0:00:10]} Rxg2 {[%emt 0:00:04]} 39. Rb8+ {[%emt 0:00:02]} Kc7 {[%emt 0:00:41]} 40. Rxb5 {[%emt 0:00:05]} Rg1+ {[%emt 0:00:13]} 41. Ke2 {[%emt 0:00:17]} Nxc3+ {[%emt 0:00:01]} 42. Kf2 {[%emt 0:00:01]} Nxb5 {[%emt 0:00:01]} 43. Nxb5+ {[%emt 0:00:01]} Kb6 {[%emt 0:00:02]} 44. Kxg1 {[%emt 0:00:01]} Kxb5 {[%emt 0:00:01]} 45. Kf2 {[%emt 0:00:00]} Kc4 {[%emt 0:00:01]} 46. Kf3 {[%emt 0:00:01]} Kd5 {[%emt 0:00:01]} 47. Kf4 {[%emt 0:00:00]} Ke6 {[%emt 0:00:01]} 48. h4 {[%emt 0:00:01]} h5 {[%emt 0:00:01]} 49. Ke4 {[%emt 0:00:02]} g5 {[%emt 0:00:01]} 50. hxg5 {[%emt 0:00:02]} fxg5 {[%emt 0:00:01]} 0-1

[Event "European Online Club-ch-C 2021"]
[Site "Online"]
[Date "2021.03.27"]
[Round "7.3"]
[White "Gukesh D"]
[Black "Yagiz, Bora"]
[Result "1-0"]
[ECO "A88"]
[WhiteElo "2563"]
[BlackElo "1877"]
[Annotator "ChessBase"]
[PlyCount "49"]
[EventDate "2021.03.27"]
[EventType "team-tourn"]
[EventCountry "NET"]
[SourceTitle "playchess.com"]
[Source "ChessBase"]
[SourceQuality "1"]
[TimeControl "900+5"]

1. d4 {[%emt 0:00:00]} d6 {[%emt 0:00:15]} 2. Nf3 {[%emt 0:00:04]} f5 {[%emt 0:00:05]} 3. c4 {[%emt 0:00:03]} Nf6 {[%emt 0:00:02]} 4. Nc3 {[%emt 0:00:02]} g6 {[%emt 0:00:00]} 5. g3 {[%emt 0:00:18]} Bg7 {[%emt 0:00:02]} 6. Bg2 {[%emt 0:00:00]} O-O {[%emt 0:00:02]} 7. O-O {[%emt 0:00:02]} c6 {[%emt 0:00:01]} 8. d5 {[%emt 0:00:01]} e5 {[%emt 0:01:16]} 9. dxe6 {[%emt 0:00:04]} Bxe6 {[%emt 0:00:02]} 10. b3 {[%emt 0:00:14]} Nh5 {[%emt 0:01:11]} 11. Nd4 {[%emt 0:00:23]} Re8 {[%emt 0:01:18]} 12. e3 {[%emt 0:00:06]} a5 {[%emt 0:00:54]} 13. Bb2 {[%emt 0:00:05]} Qc7 {[%emt 0:01:04]} 14. Qd2 {[%emt 0:00:10]} Na6 {[%emt 0:00:03]} 15. Rfd1 {[%emt 0:00:13]} Nc5 {[%emt 0:01:27]} 16. Qc2 {[%emt 0:00:31]} Nf6 {[%emt 0:00:29]} 17. a3 {[%emt 0:00:11]} Bf7 {[%emt 0:01:34]} 18. b4 {[%emt 0:00:06]} axb4 {[%emt 0:00:01]} 19. axb4 {[%emt 0:00:02]} Nce4 {[%emt 0:00:20]} 20. Nxe4 {[%emt 0:00:05]} Nxe4 {[%emt 0:00:20]} 21. g4 {[%emt 0:00:38]} Qd7 {[%emt 0:05:43]} 22. gxf5 {[%emt 0:00:23]} gxf5 {[%emt 0:00:03]} 23. Rxa8 {[%emt 0:00:07]} Rxa8 {[%emt 0:00:03]} 24. Bh3 {[%emt 0:00:02]} Bg6 {[%emt 0:00:12]} 25. Qxe4 {[%emt 0:00:03]} 1-0

[Event "European Online Club-ch-C 2021"]
[Site "Online"]
[Date "2021.03.27"]
[Round "7.4"]
[White "Deveci, Huseyin Said"]
[Black "Alvarez Fernandez, Enrique"]
[Result "0-1"]
[ECO "B95"]
[WhiteElo "1521"]
[BlackElo "2349"]
[Annotator "NA"]
[PlyCount "98"]
[EventDate "2021.03.27"]
[EventType "team-tourn"]
[EventCountry "NET"]
[SourceTitle "playchess.com"]
[Source "ChessBase"]
[SourceQuality "1"]
[TimeControl "900+5"]

1. e4 {[%emt 0:00:00]} c5 {[%emt 0:00:04]} 2. Nf3 {[%emt 0:00:06]} d6 {[%emt 0:00:03]} 3. d4 {[%emt 0:00:02]} cxd4 {[%emt 0:00:03]} 4. Nxd4 {[%emt 0:00:01]} Nf6 {[%emt 0:00:04]} 5. Nc3 {[%emt 0:00:02]} a6 {[%emt 0:00:03]} 6. Bg5 {[%emt 0:00:12]} e6 {[%emt 0:00:04]} 7. Qd2 {[%emt 0:00:03]} Be7 {[%emt 0:00:12]} 8. O-O-O {[%emt 0:00:09]} h6 {[%emt 0:00:58]} 9. Bxf6 {[%emt 0:01:23]} Bxf6 {[%emt 0:00:10]} 10. f3 {[%emt 0:00:07]} O-O {[%emt 0:02:06]} 11. Kb1 {[%emt 0:00:16]} b5 {[%emt 0:00:48]} 12. g4 {[%emt 0:01:49]} Bb7 {[%emt 0:00:28]} 13. Bg2 {[%emt 0:01:15]} Nd7 {[%emt 0:00:13]} 14. Nde2 {[%emt 0:01:08]} Be7 {[%emt 0:00:35]} 15. Ng3 {[%emt 0:00:49]} Ne5 {[%emt 0:01:04]} 16. Nh5 {[%emt 0:02:13]} Rc8 {[%emt 0:00:39]} 17. f4 {[%emt 0:01:30]} Nc4 {[%emt 0:00:44]} 18. Qd4 {[%emt 0:00:44]} e5 {[%emt 0:00:21]} 19. fxe5 {[%emt 0:00:31]} dxe5 {[%emt 0:00:54]} 20. Qa7 {[%emt 0:00:23]} Qc7 {[%emt 0:01:08]} 21. Rd3 {[%emt 0:03:25]} Bc5 {[%emt 0:00:24]} 22. Nd5 {[%emt 0:00:19]} Bxa7 {[%emt 0:01:19]} 23. Nxc7 {[%emt 0:00:03]} Rxc7 {[%emt 0:00:02]} 24. Rhd1 {[%emt 0:00:12]} Ne3 {[%emt 0:00:13]} 25. R1d2 {[%emt 0:00:06]} Nxg2 {[%emt 0:00:04]} 26. Rxg2 {[%emt 0:00:02]} Bxe4 {[%emt 0:00:03]} 27. Rgg3 {[%emt 0:00:04]} Bxd3 {[%emt 0:00:03]} 28. Rxd3 {[%emt 0:00:02]} Rc4 {[%emt 0:00:13]} 29. h3 {[%emt 0:00:06]} Rd4 {[%emt 0:00:05]} 30. Kc1 {[%emt 0:00:03]} Rxd3 {[%emt 0:00:03]} 31. c3 {[%emt 0:00:02]} Rxh3 {[%emt 0:00:13]} 32. Kc2 {[%emt 0:00:18]} Rxh5 {[%emt 0:00:02]} 33. gxh5 {[%emt 0:00:02]} g6 {[%emt 0:00:02]} 34. hxg6 {[%emt 0:00:02]} fxg6 {[%emt 0:00:03]} 35. Kd2 {[%emt 0:00:04]} h5 {[%emt 0:00:05]} 36. Ke2 {[%emt 0:00:02]} e4 {[%emt 0:00:07]} 37. Ke1 {[%emt 0:00:01]} Rf2 {[%emt 0:00:04]} 38. b3 {[%emt 0:00:03]} e3 {[%emt 0:00:04]} 39. b4 {[%emt 0:00:03]} Kf7 {[%emt 0:00:03]} 40. a3 {[%emt 0:00:01]} Ke6 {[%emt 0:00:02]} 41. Kd1 {[%emt 0:00:03]} Kd5 {[%emt 0:00:03]} 42. Ke1 {[%emt 0:00:02]} Kc4 {[%emt 0:00:05]} 43. Kd1 {[%emt 0:00:01]} Kd3 {[%emt 0:00:02]} 44. Ke1 {[%emt 0:00:02]} h4 {[%emt 0:00:05]} 45. c4 {[%emt 0:00:01]} bxc4 {[%emt 0:00:03]} 46. a4 {[%emt 0:00:01]} h3 {[%emt 0:00:04]} 47. b5 {[%emt 0:00:01]} axb5 {[%emt 0:00:03]} 48. axb5 {[%emt 0:00:01]} h2 {[%emt 0:00:02]} 49. b6 {[%emt 0:00:01]} h1=R# {[%emt 0:00:04]} 0-1

[Event "European Online Club-ch-C 2021"]
[Site "Online"]
[Date "2021.03.27"]
[Round "7.5"]
[White "Babula, Vlastimil"]
[Black "Nguyen, Thai Dai Van"]
[Result "1/2-1/2"]
[ECO "D26"]
[WhiteElo "2559"]
[BlackElo "2577"]
[Annotator "ChessBase"]
[PlyCount "88"]
[EventDate "2021.03.27"]
[EventType "team-tourn"]
[EventCountry "NET"]
[SourceTitle "playchess.com"]
[Source "ChessBase"]
[SourceQuality "1"]
[TimeControl "900+5"]

1. d4 {[%emt 0:00:00]} d5 {[%emt 0:00:03]} 2. c4 {[%emt 0:00:08]} dxc4 {[%emt 0:00:00]} 3. e3 {[%emt 0:00:03]} Nf6 {[%emt 0:00:01]} 4. Bxc4 {[%emt 0:00:03]} e6 {[%emt 0:00:00]} 5. Nf3 {[%emt 0:00:04]} c5 {[%emt 0:00:01]} 6. O-O {[%emt 0:00:10]} a6 {[%emt 0:00:02]} 7. a4 {[%emt 0:00:03]} cxd4 {[%emt 0:00:02]} 8. exd4 {[%emt 0:00:03]} Nc6 {[%emt 0:00:02]} 9. Nc3 {[%emt 0:00:06]} Be7 {[%emt 0:00:02]} 10. Re1 {[%emt 0:00:39]} O-O {[%emt 0:00:05]} 11. Bf4 {[%emt 0:00:42]} Qb6 {[%emt 0:00:55]} 12. Qb3 {[%emt 0:03:07]} Qxb3 {[%emt 0:02:40]} 13. Bxb3 {[%emt 0:00:04]} Bd7 {[%emt 0:00:00]} 14. Rad1 {[%emt 0:00:28]} Rac8 {[%emt 0:03:50]} 15. d5 {[%emt 0:00:49]} exd5 {[%emt 0:00:23]} 16. Nxd5 {[%emt 0:00:25]} Nxd5 {[%emt 0:00:05]} 17. Bxd5 {[%emt 0:00:05]} Bf6 {[%emt 0:00:56]} 18. b3 {[%emt 0:02:45]} Bf5 {[%emt 0:00:15]} 19. h3 {[%emt 0:00:45]} h6 {[%emt 0:02:00]} 20. Ne5 {[%emt 0:00:52]} Bxe5 {[%emt 0:02:00]} 21. Bxe5 {[%emt 0:00:04]} Rfe8 {[%emt 0:00:25]} 22. Bb2 {[%emt 0:00:28]} Rxe1+ {[%emt 0:00:24]} 23. Rxe1 {[%emt 0:00:04]} Rd8 {[%emt 0:00:01]} 24. Bxc6 {[%emt 0:01:32]} bxc6 {[%emt 0:00:00]} 25. Rc1 {[%emt 0:00:03]} Rd2 {[%emt 0:00:08]} 26. Ba3 {[%emt 0:00:47]} Be4 {[%emt 0:00:31]} 27. Bc5 {[%emt 0:01:26]} Bc2 {[%emt 0:00:10]} 28. Be3 {[%emt 0:00:12]} Rd1+ {[%emt 0:00:03]} 29. Rxd1 {[%emt 0:00:03]} Bxd1 {[%emt 0:00:00]} 30. b4 {[%emt 0:00:02]} Bxa4 {[%emt 0:00:01]} 31. f3 {[%emt 0:00:04]} f6 {[%emt 0:00:03]} 32. Kf2 {[%emt 0:00:02]} Kf7 {[%emt 0:00:00]} 33. Bc5 {[%emt 0:00:02]} Bb5 {[%emt 0:00:08]} 34. g4 {[%emt 0:00:04]} g5 {[%emt 0:00:02]} 35. Kg3 {[%emt 0:00:05]} Be2 {[%emt 0:00:03]} 36. f4 {[%emt 0:00:03]} Bb5 {[%emt 0:00:08]} 37. h4 {[%emt 0:00:05]} Be2 {[%emt 0:00:05]} 38. hxg5 {[%emt 0:00:12]} hxg5 {[%emt 0:00:03]} 39. f5 {[%emt 0:00:08]} Ke8 {[%emt 0:00:05]} 40. Bd4 {[%emt 0:00:04]} Ke7 {[%emt 0:00:02]} 41. Bc3 {[%emt 0:00:03]} Kf7 {[%emt 0:00:01]} 42. Bd4 {[%emt 0:00:02]} Ke7 {[%emt 0:00:01]} 43. Bc3 {[%emt 0:00:02]} Kf7 {[%emt 0:00:01]} 44. Bd4 {[%emt 0:00:02]} Ke7 {[%emt 0:00:02]} 1/2-1/2